bitfinex/quotes_SOLUSD_20250330
["timestamp","ask_amount","ask_price","bid_price","bid_amount"]
[1743375069056,23.79342674,125.54,125.49,7.9687]
[1743375069435,30.17842674,125.55,125.49,7.9687]
[1743375069636,6.385,125.55,125.49,7.9687]
[1743375069844,6.385,125.55,125.49,19.9219]
[1743375071153,6.385,125.55,125.5,0.14216157]
[1743375072950,1.5828,125.56,125.5,0.14216157]
[1743375073338,1.5828,125.56,125.51,27.8861]
[1743375074154,0.063,125.56,125.51,27.8861]
[1743375074359,0.063,125.56,125.52,0.14216157]
[1743375075465,0.063,125.56,125.53,7.9662]
[1743375078473,0.063,125.56,125.51,7.9674]
[1743375078768,23.79342674,125.54,125.5,0.03]
[1743375078942,23.79342674,125.52,125.5,0.03]
[1743375079541,29.87092674,125.51,125.5,0.03]
[1743375079864,48.5205756,125.51,125.5,0.03]
[1743375080570,0.14216157,125.49,125.47,0.03]
[1743375080749,42.72739874,125.48,125.47,0.03]
[1743375082251,18.933972,125.48,125.47,0.03]
[1743375082459,42.72739874,125.48,125.47,0.03]
[1743375082838,31.89342674,125.49,125.47,0.03]
[1743375083041,23.79342674,125.48,125.47,0.03]
[1743375083250,31.89342674,125.49,125.47,0.03]
[1743375084965,23.79342674,125.48,125.47,0.03]
[1743375085342,42.58523717,125.48,125.47,0.03]
[1743375086343,42.86956031,125.48,125.47,0.03]
[1743375087055,23.79342674,125.49,125.47,0.03]
[1743375087756,18.933972,125.5,125.47,0.03]
[1743375087757,42.86956031,125.48,125.47,0.03]
[1743375088862,50.83886031,125.48,125.47,0.03]
[1743375089746,123.19669013,125.48,125.47,0.03]
[1743375091771,0.14216157,125.46,125.41,0.03]
[1743375091961,14.90909499,125.43,125.41,0.03]
[1743375092153,33.55874385,125.42,125.41,0.03]
[1743375092470,33.84306699,125.42,125.41,0.03]
[1743375092672,35.41576699,125.42,125.41,0.03]
[1743375093246,0.14216157,125.41,125.4,0.03]
[1743375093570,48.61000041,125.41,125.4,0.03]
[1743375093765,41.67470542,125.41,125.4,0.03]
[1743375094584,57.65090542,125.41,125.4,0.03]
[1743375094775,33.70090542,125.41,125.4,0.03]
[1743375095146,41.67470542,125.41,125.4,0.03]
[1743375095354,34.12739013,125.41,125.4,0.03]
[1743375095976,33.84306699,125.41,125.4,0.03]
[1743375097284,41.95902856,125.41,125.4,0.03]
[1743375097672,50.93055119,125.41,125.4,0.03]
[1743375098177,51.07271276,125.41,125.4,0.03]
[1743375101079,74.95333038,125.41,125.4,0.03]
[1743375101276,18.79181043,125.37,125.36,0.03]
[1743375101456,50.77242805,125.37,125.36,0.03]
[1743375102367,58.74872805,125.37,125.36,0.03]
[1743375102884,50.63026648,125.37,125.36,0.03]
[1743375103887,8.1,125.37,125.36,0.03]
[1743375106275,31.98061762,125.37,125.36,0.03]
[1743375106486,50.63026648,125.37,125.36,0.03]
[1743375106992,31.98061762,125.37,125.36,0.03]
[1743375107163,50.63026648,125.37,125.36,0.03]
[1743375108676,26.74964886,125.37,125.36,0.03]
[1743375109606,27.17613357,125.37,125.36,0.03]
[1743375109787,51.05675119,125.37,125.36,0.03]
[1743375109985,23.88061762,125.4,125.36,0.03]
[1743375110190,82.6727,125.42,125.36,0.03]
[1743375110191,18.64964886,125.41,125.36,0.03]
[1743375111096,0.063,125.4,125.36,8.007]
[1743375112581,0.063,125.4,125.36,27.9495]
[1743375115588,0.063,125.4,125.37,0.14216157]
[1743375115983,0.063,125.4,125.38,7.9757]
[1743375116380,0.063,125.4,125.39,0.14216157]
[1743375117184,0.063,125.43,125.42,20.14216157]
[1743375117597,23.88061762,125.51,125.43,20.14216157]
[1743375118004,18.64964886,125.51,125.44,27.9017]
[1743375118702,42.53026648,125.51,125.44,27.9017]
[1743375119288,18.64964886,125.51,125.44,27.9017]
[1743375120000,33.54562077,125.51,125.44,27.9017]
[1743375120401,18.64964886,125.51,125.44,27.9017]
[1743375121692,18.64964886,125.52,125.44,27.9017]
[1743375121891,33.54562077,125.52,125.44,27.9017]
[1743375125204,0.063,125.53,125.45,8.28084628]
[1743375126609,0.063,125.53,125.46,7.9706]
[1743375127694,0.063,125.53,125.46,27.8972]
[1743375128096,14.89597191,125.52,125.46,7.9706]
[1743375128291,14.89597191,125.51,125.46,7.9706]
[1743375128606,14.89597191,125.51,125.43,20.07306157]
[1743375128792,14.89597191,125.51,125.44,8.11406157]
[1743375129189,22.86347191,125.51,125.44,8.11406157]
[1743375129390,14.89597191,125.48,125.43,7.9723]
[1743375129711,21.36987191,125.49,125.43,7.9723]
[1743375130102,14.89597191,125.48,125.43,7.9723]
[1743375130393,14.89597191,125.46,125.4,7.9744]
[1743375130990,14.89597191,125.48,125.41,0.14216157]
[1743375131400,102.46987191,125.49,125.41,0.14216157]
[1743375131694,16.48417191,125.51,125.41,19.21829514]
[1743375131895,16.48417191,125.51,125.44,20.0]
[1743375132104,14.89597191,125.5,125.44,20.0]
[1743375133011,24.45177191,125.51,125.45,7.9713]
[1743375133509,16.48417191,125.51,125.45,7.9713]
[1743375134013,14.89597191,125.5,125.45,7.9713]
[1743375134691,129.15462077,125.52,125.45,27.8995]
[1743375135711,14.89597191,125.5,125.44,7.9719]
[1743375135903,14.89597191,125.47,125.42,7.9727]
[1743375136095,14.89597191,125.47,125.43,0.03]
[1743375137608,33.54562077,125.48,125.43,0.03]
[1743375137805,81.1,125.5,125.43,20.03]
[1743375138006,18.64964886,125.51,125.43,20.03]
[1743375138214,33.54562077,125.51,125.43,20.03]
[1743375138507,18.64964886,125.51,125.43,20.03]
[1743375138892,33.54562077,125.51,125.44,7.9719]
[1743375139091,14.89597191,125.49,125.44,7.9719]
[1743375139624,14.89597191,125.48,125.43,8.0024]
[1743375140719,18.933972,125.49,125.43,8.0024]
[1743375142824,0.28432314,125.49,125.43,8.0024]
[1743375143405,26.902672,125.49,125.43,8.0024]
[1743375143612,41.79864391,125.49,125.43,8.0024]
[1743375144526,18.933972,125.49,125.43,8.0024]
[1743375145518,14.89597191,125.48,125.43,0.03]
[1743375145902,14.89597191,125.47,125.43,0.03]
[1743375146106,14.89597191,125.46,125.43,0.03]
[1743375146305,33.82994391,125.45,125.43,0.03]
[1743375147030,0.14216157,125.44,125.43,0.03]
[1743375147202,16.59703348,125.44,125.43,0.03]
[1743375147406,24.56893348,125.44,125.43,0.03]
[1743375148833,43.64506705,125.44,125.43,0.03]
[1743375153330,6.33606157,125.4,125.36,0.03]
[1743375153510,1.527,125.37,125.36,0.03]
[1743375153837,35.07262077,125.37,125.36,0.03]
[1743375154440,35.35694391,125.37,125.36,0.03]
[1743375156036,35.49910548,125.37,125.36,0.03]
[1743375156214,43.47540548,125.37,125.36,0.03]
[1743375156930,35.49910548,125.37,125.36,0.03]
[1743375157837,43.47540548,125.37,125.36,0.03]
[1743375158022,35.49910548,125.37,125.36,0.03]
[1743375158424,43.61756705,125.37,125.36,0.03]
[1743375163249,35.64126705,125.37,125.36,0.03]
[1743375163752,41.76778234,125.37,125.36,0.03]
[1743375163957,41.62562077,125.37,125.36,0.03]
[1743375164726,26.72964886,125.37,125.36,0.03]
[1743375164939,41.62562077,125.37,125.36,0.03]
[1743375167549,95.99597191,125.38,125.36,0.03]
[1743375167844,81.1,125.38,125.36,0.03]
[1743375168248,95.99597191,125.38,125.36,0.03]
[1743375168651,14.89597191,125.38,125.36,0.03]
[1743375168853,41.90994391,125.39,125.36,0.03]
[1743375169952,33.82994391,125.39,125.36,0.03]
[1743375170151,41.90994391,125.39,125.36,0.03]
[1743375171430,14.89597191,125.38,125.36,0.03]
[1743375172450,41.90994391,125.39,125.36,0.03]
[1743375172854,27.013972,125.39,125.36,0.03]
[1743375173078,14.89597191,125.4,125.36,0.03]
[1743375173365,22.97597191,125.41,125.36,0.03]
[1743375174554,14.89597191,125.41,125.36,0.03]
[1743375174859,14.89597191,125.4,125.36,0.03]
[1743375177564,14.89597191,125.38,125.36,0.03]
[1743375178141,33.82994391,125.39,125.36,0.03]
[1743375179157,15.18029505,125.39,125.36,0.03]
[1743375179362,33.54562077,125.4,125.36,0.03]
[1743375179736,14.89597191,125.39,125.36,0.03]
[1743375181539,33.54562077,125.4,125.36,0.03]
[1743375181869,15.18029505,125.41,125.36,0.03]
[1743375182083,33.82994391,125.41,125.36,0.03]
[1743375183070,41.80384391,125.41,125.36,0.03]
[1743375183766,14.89597191,125.4,125.36,0.03]
[1743375184547,0.28432314,125.39,125.36,0.03]
[1743375184763,15.18029505,125.39,125.36,0.03]
[1743375185377,18.933972,125.39,125.36,0.03]
[1743375186580,89.16,125.42,125.36,0.03]
[1743375186872,33.54562077,125.41,125.36,0.03]
[1743375187241,14.89597191,125.4,125.36,0.03]
[1743375188539,33.54562077,125.41,125.36,0.03]
[1743375190062,14.89597191,125.4,125.36,0.03]
[1743375190239,14.89597191,125.38,125.36,0.03]
[1743375190439,0.42648471,125.39,125.36,0.03]
[1743375190440,33.82994391,125.37,125.36,0.03]
[1743375190957,15.18029505,125.37,125.36,0.03]
[1743375192262,33.54562077,125.38,125.36,0.03]
[1743375192479,18.64964886,125.38,125.36,0.03]
[1743375192651,33.54562077,125.38,125.36,0.03]
[1743375193142,18.64964886,125.38,125.36,0.03]
[1743375193570,41.52142077,125.38,125.36,0.03]
[1743375194360,41.66408234,125.37,125.36,0.03]
[1743375194572,33.82994391,125.37,125.36,0.03]
[1743375196045,41.80624391,125.37,125.36,0.03]
[1743375196246,49.86624391,125.37,125.36,0.03]
[1743375200743,41.88994391,125.37,125.36,0.03]
[1743375201152,49.86624391,125.37,125.36,0.03]
[1743375201671,44.52661269,125.37,125.36,0.03]
[1743375203365,26.993972,125.37,125.36,0.03]
[1743375203545,8.06,125.37,125.36,0.03]
[1743375204965,89.16,125.39,125.36,0.03]
[1743375205367,98.71634069,125.39,125.36,0.03]
[1743375205572,17.61634069,125.39,125.36,0.03]
[1743375206681,25.59144069,125.39,125.36,0.03]
[1743375206882,9.55634069,125.37,125.36,0.03]
[1743375207356,28.20598955,125.38,125.36,0.03]
[1743375207556,18.64964886,125.38,125.36,0.03]
[1743375209673,28.20598955,125.38,125.36,0.03]
[1743375210482,36.18178955,125.38,125.36,0.03]
[1743375210705,9.55634069,125.37,125.36,0.03]
[1743375211284,36.18178955,125.38,125.36,0.03]
[1743375212196,9.55634069,125.37,125.36,0.03]
[1743375212688,36.18178955,125.38,125.36,0.03]
[1743375213579,27.70598955,125.37,125.36,0.03]
[1743375213779,35.68228955,125.37,125.36,0.03]
[1743375216694,36.18228955,125.37,125.36,0.03]
[1743375218995,28.49031269,125.37,125.36,0.03]
[1743375219999,36.60877426,125.37,125.36,0.03]
[1743375220295,20.0,125.35,125.34,0.03]
[1743375220500,48.63247426,125.35,125.34,0.03]
[1743375220675,194.86743933,125.35,125.34,0.03]
[1743375220878,204.33168209,125.35,125.34,0.03]
[1743375224100,180.32168209,125.35,125.34,0.03]
[1743375227283,18.933972,125.34,125.32,0.03]
[1743375227479,36.38815112,125.33,125.32,0.03]
[1743375228285,56.53031269,125.33,125.32,0.03]
[1743375228494,56.53031269,125.33,125.28,0.03]
[1743375228495,20.28432314,125.29,125.28,0.03]
[1743375228778,48.49031269,125.29,125.28,0.03]
[1743375229503,56.47171269,125.29,125.28,0.03]
[1743375231201,56.75603583,125.29,125.28,0.03]
[1743375232392,60.74819202,125.29,125.28,0.03]
[1743375232594,98.97355478,125.29,125.28,0.03]
[1743375235012,18.79181043,125.28,125.23,0.03]
[1743375235308,48.49031269,125.24,125.23,0.03]
[1743375235518,28.49031269,125.24,125.23,0.03]
[1743375236590,36.47491269,125.24,125.23,0.03]
[1743375236790,18.933972,125.23,125.2,2.908669]
[1743375237008,28.49031269,125.21,125.2,2.908669]
[1743375237391,48.49031269,125.21,125.2,2.908669]
[1743375237714,55.62664885,125.21,125.2,2.908669]
[1743375238308,18.933972,125.19,125.15,0.03]
[1743375238611,36.76433583,125.16,125.15,0.03]
[1743375238914,36.81463583,125.16,125.15,0.03]
[1743375239899,26.973972,125.16,125.15,0.03]
[1743375240318,36.53031269,125.16,125.15,0.03]
[1743375240700,26.973972,125.16,125.15,0.03]
[1743375242609,8.04,125.16,125.15,0.03]
[1743375245511,28.20598955,125.19,125.15,0.03]
[1743375246128,18.64964886,125.2,125.15,0.03]
[1743375246309,18.64964886,125.18,125.15,0.03]
[1743375247715,9.84066383,125.19,125.15,0.03]
[1743375247922,0.28432314,125.2,125.15,0.03]
[1743375247923,18.64964886,125.2,125.15,0.03]
[1743375248303,9.84066383,125.19,125.15,0.03]
[1743375248737,9.55634069,125.17,125.15,0.03]
[1743375248915,9.55634069,125.16,125.15,0.03]
[1743375249114,9.84066383,125.17,125.15,0.03]
[1743375251228,0.28432314,125.17,125.15,0.03]
[1743375251609,81.1,125.2,125.15,0.03]
[1743375251834,9.55634069,125.2,125.15,0.03]
[1743375253131,9.55634069,125.19,125.15,0.03]
[1743375253440,0.28432314,125.2,125.15,0.03]
[1743375253441,9.84066383,125.2,125.15,0.03]
[1743375253731,18.64964886,125.2,125.16,20.0]
[1743375255029,18.64964886,125.2,125.17,7.9891]
[1743375255604,9.55634069,125.21,125.17,7.9891]
[1743375258132,90.65634069,125.23,125.17,7.9891]
[1743375258428,18.933972,125.22,125.17,7.9891]
[1743375259337,9.55634069,125.21,125.2,20.0]
[1743375259513,9.55634069,125.21,125.16,7.9897]
[1743375259834,28.20598955,125.2,125.17,0.03]
[1743375262739,18.64964886,125.19,125.17,0.03]
[1743375262919,0.28432314,125.18,125.17,0.03]
[1743375263543,28.49031269,125.18,125.17,0.03]
[1743375264015,18.933972,125.18,125.17,0.03]
[1743375266322,18.79181043,125.19,125.17,0.03]
[1743375268945,18.933972,125.2,125.17,0.03]
[1743375273542,0.063,125.21,125.17,20.03]
[1743375274048,0.063,125.21,125.18,7.9884]
[1743375274228,0.063,125.21,125.18,27.9596]
[1743375280751,0.063,125.21,125.18,7.9884]
[1743375280932,18.64964886,125.2,125.18,7.9884]
[1743375281247,28.20598955,125.2,125.17,8.019]
[1743375281848,28.20598955,125.2,125.17,0.03]
[1743375283352,18.64964886,125.2,125.17,0.03]
[1743375283854,9.55634069,125.2,125.17,0.03]
[1743375284556,9.61934069,125.2,125.17,0.03]
[1743375285051,18.71264886,125.2,125.17,0.03]
[1743375287562,0.063,125.2,125.17,0.03]
[1743375292357,0.063,125.2,125.17,20.03]
[1743375292860,0.063,125.2,125.18,7.9884]
[1743375303262,0.063,125.2,125.17,0.03]
[1743375303461,9.61934069,125.2,125.17,0.03]
[1743375304365,28.20598955,125.19,125.17,0.03]
[1743375304674,18.64964886,125.18,125.17,0.03]
[1743375304976,28.20598955,125.18,125.17,0.03]
[1743375309159,36.76303583,125.18,125.17,0.03]
[1743375309984,66.99999859,125.16,125.15,0.03]
[1743375310287,76.66629859,125.16,125.15,0.03]
[1743375310478,82.71539859,125.16,125.15,0.03]
[1743375311310,90.70509859,125.16,125.15,0.03]
[1743375311897,44.49003583,125.16,125.15,0.03]
[1743375312710,44.34787426,125.16,125.15,0.03]
[1743375314689,44.49003583,125.16,125.15,0.03]
[1743375326502,36.79463583,125.16,125.15,0.03]
[1743375330405,84.70463583,125.16,125.15,0.03]
[1743375331725,36.79463583,125.16,125.15,0.03]
[1743375332423,123.13999859,125.16,125.15,0.03]
[1743375335232,167.14999859,125.16,125.15,0.03]
[1743375338711,143.13999859,125.16,125.15,0.03]
[1743375338906,18.933972,125.12,125.07,7.9955]
[1743375339127,17.57634069,125.11,125.07,7.9955]
[1743375339513,9.55634069,125.1,125.07,7.9955]
[1743375340446,9.55634069,125.09,125.06,1.5778]
[1743375340830,9.55634069,125.1,125.06,1.5778]
[1743375341340,28.20598955,125.09,125.04,14.4511]
[1743375341752,9.55634069,125.1,125.04,34.4447]
[1743375341935,8.02,125.11,125.04,34.4447]
[1743375342254,17.57634069,125.11,125.04,34.4447]
[1743375343052,0.28432314,125.1,125.04,34.4447]
[1743375344420,8.02,125.11,125.04,34.4447]
[1743375344822,8.02,125.11,125.07,20.0]
[1743375345841,8.02,125.11,125.04,34.4447]
[1743375346043,0.28432314,125.12,125.04,34.4447]
[1743375346343,0.28432314,125.11,125.04,34.4447]
[1743375352937,8.02,125.12,125.07,20.0]
[1743375354048,18.64964886,125.13,125.08,7.9948]
[1743375354220,0.42648471,125.12,125.08,7.9948]
[1743375354427,0.56864628,125.12,125.08,7.9948]
[1743375354827,0.28432314,125.12,125.08,7.9948]
[1743375356056,0.28432314,125.12,125.06,19.9893]
[1743375356228,0.28432314,125.13,125.07,1.5133]
[1743375358246,0.063,125.15,125.08,67.9564]
[1743375358452,0.063,125.15,125.09,6.53]
[1743375359554,0.063,125.15,125.1,27.9776]
[1743375360352,0.063,125.15,125.13,20.0]
[1743375361656,0.063,125.17,125.16,1.5098]
[1743375362449,12.39619792,125.21,125.18,20.0]
[1743375362657,8.30001001,125.21,125.19,20.0]
[1743375362956,8.30001001,125.26,125.19,20.0]
[1743375363744,8.30001001,125.26,125.2,27.9552]
[1743375365758,0.28432314,125.26,125.2,27.9552]
[1743375365968,0.28432314,125.26,125.21,1.5098]
[1743375366672,0.28432314,125.26,125.21,9.4957]
[1743375369838,0.34732314,125.26,125.21,9.4957]
[1743375373959,0.063,125.26,125.21,29.4621]
[1743375376962,0.063,125.26,125.21,9.4957]
[1743375377160,0.063,125.26,125.21,7.9859]
[1743375377870,0.34732314,125.26,125.2,47.9552]
[1743375379270,0.34732314,125.26,125.2,7.9872]
[1743375379271,28.83763583,125.26,125.2,7.9872]
[1743375380067,28.49031269,125.24,125.19,7.9878]
[1743375380249,28.49031269,125.24,125.18,9.5404]
[1743375381469,0.28432314,125.23,125.18,9.5404]
[1743375381654,0.28432314,125.23,125.21,0.03]
[1743375381965,89.1,125.25,125.21,0.03]
[1743375382170,0.063,125.26,125.21,0.03]
[1743375383668,0.063,125.26,125.24,1.5522]
[1743375385572,0.063,125.26,125.25,7.984]
[1743375391153,0.063,125.28,125.27,20.14216157]
[1743375391659,0.063,125.28,125.27,39.21829514]
[1743375391857,0.063,125.28,125.25,27.944]
[1743375395077,0.063,125.28,125.25,7.984]
[1743375397176,0.063,125.28,125.23,27.947]
[1743375401181,0.063,125.28,125.24,0.14216157]
[1743375403667,0.063,125.28,125.25,47.944]
[1743375404188,0.063,125.28,125.26,0.14216157]
[1743375404482,0.063,125.28,125.26,19.21829514]
[1743375404884,0.063,125.28,125.26,20.75779514]
[1743375405987,0.063,125.3,125.29,20.0]
[1743375407092,0.063,125.33,125.3,0.14216157]
[1743375407389,0.063,125.33,125.31,0.14216157]
[1743375407968,0.063,125.33,125.32,7.9795]
[1743375410101,0.063,125.33,125.32,8.12166157]
[1743375410303,0.063,125.34,125.33,0.14216157]
[1743375410470,0.063,125.35,125.33,0.14216157]
[1743375411174,0.063,125.35,125.34,20.0]
[1743375411374,0.063,125.35,125.34,20.14216157]
[1743375412194,0.063,125.35,125.34,28.12036157]
[1743375414778,0.0001,125.39,125.38,0.5]
[1743375414997,0.063,125.43,125.42,20.14216157]
[1743375415276,0.063,125.43,125.4,0.14216157]
[1743375417393,0.063,125.43,125.41,7.9738]
[1743375421188,14.96609614,125.43,125.38,7.9757]
[1743375421390,1.5441,125.42,125.35,28.06386157]
[1743375422779,21.03779614,125.41,125.35,7.9776]
[1743375422990,21.03779614,125.41,125.32,7.9795]
[1743375422991,14.90309614,125.38,125.32,7.9795]
[1743375423579,14.90309614,125.38,125.31,27.9306]
[1743375423776,22.86309614,125.39,125.31,27.9306]
[1743375424897,0.28432314,125.38,125.31,27.9306]
[1743375430288,0.28432314,125.38,125.31,27.9936]
[1743375431090,7.96,125.39,125.31,27.9936]
[1743375433187,16.48209614,125.38,125.31,27.9936]
[1743375433509,16.48209614,125.38,125.31,8.0432]
[1743375433510,40.24370657,125.37,125.31,8.0432]
[1743375434420,0.28432314,125.36,125.31,8.0432]
[1743375434628,6.5488,125.37,125.31,8.0432]
[1743375434912,6.5488,125.37,125.31,27.9937]
[1743375435213,6.5488,125.37,125.31,0.063]
[1743375437494,6.5488,125.37,125.31,27.9937]
[1743375438515,1.579,125.38,125.31,27.9937]
[1743375438716,6.5488,125.4,125.32,19.21829514]
[1743375439292,6.5488,125.4,125.35,20.0]
[1743375439814,6.5488,125.4,125.36,7.977]
[1743375440314,1.579,125.41,125.36,7.977]
[1743375440709,1.579,125.41,125.35,7.9776]
[1743375440895,9.55225705,125.4,125.35,7.9776]
[1743375441215,9.55225705,125.39,125.34,86.323731]
[1743375441794,33.71764903,125.4,125.34,86.323731]
[1743375442315,0.28432314,125.39,125.34,86.323731]
[1743375445326,0.28432314,125.39,125.32,27.9284]
[1743375446214,0.28432314,125.39,125.32,7.9795]
[1743375446215,18.79181043,125.38,125.32,7.9795]
[1743375446402,29.57680017,125.38,125.32,7.9795]
[1743375446597,14.9258386,125.37,125.32,7.9795]
[1743375446798,16.5629386,125.36,125.31,8.0429]
[1743375446997,16.5629386,125.36,125.31,0.063]
[1743375448016,33.71764903,125.35,125.31,0.063]
[1743375449024,14.9258386,125.34,125.31,0.063]
[1743375450435,15.21016174,125.35,125.31,0.063]
[1743375450630,0.28432314,125.35,125.31,0.063]
[1743375451113,1.6371,125.36,125.31,0.063]
[1743375451908,16.5629386,125.36,125.31,0.063]
[1743375453343,33.57548746,125.35,125.31,0.063]
[1743375453807,15.21016174,125.34,125.31,0.063]
[1743375454007,14.9258386,125.33,125.31,0.063]
[1743375454537,0.28432314,125.32,125.31,0.063]
[1743375457032,19.21829514,125.32,125.31,0.063]
[1743375457223,34.14413374,125.32,125.31,0.063]
[1743375459039,35.78123374,125.32,125.31,0.063]
[1743375459329,35.78123374,125.32,125.3,0.063]
[1743375459511,33.8598106,125.31,125.3,0.063]
[1743375459720,100.033972,125.3,125.25,0.03]
[1743375459924,15.21016174,125.26,125.25,0.03]
[1743375460130,41.8198106,125.26,125.25,0.03]
[1743375462931,42.10413374,125.26,125.25,0.03]
[1743375466341,48.39093374,125.26,125.25,0.03]
[1743375466850,131.11713374,125.26,125.25,0.03]
[1743375469349,20.0,125.22,125.21,0.03]
[1743375469549,68.7856492,125.22,125.18,0.063]
[1743375469737,18.933972,125.2,125.18,0.063]
[1743375469933,81.1,125.21,125.18,0.063]
[1743375470757,7.96,125.22,125.18,0.063]
[1743375472861,0.28432314,125.24,125.18,0.063]
[1743375474932,15.49448488,125.24,125.18,0.063]
[1743375475351,15.21016174,125.24,125.18,0.063]
[1743375475657,0.28432314,125.24,125.18,0.063]
[1743375476154,15.21016174,125.24,125.18,0.063]
[1743375478361,0.28432314,125.24,125.18,0.063]
[1743375484362,28.79194438,125.24,125.18,0.063]
[1743375484665,18.933972,125.22,125.18,0.063]
[1743375485066,0.28432314,125.22,125.18,0.063]
[1743375486478,9.85797238,125.23,125.18,0.063]
[1743375488370,0.28432314,125.22,125.18,0.063]
[1743375490569,18.933972,125.24,125.18,20.063]
[1743375490969,26.873972,125.24,125.18,20.063]
[1743375492057,0.28432314,125.23,125.19,7.9878]
[1743375492688,0.28432314,125.23,125.18,28.0513]
[1743375494775,17.48664924,125.26,125.18,28.0513]
[1743375494974,0.28432314,125.25,125.19,1.6271]
[1743375496574,0.28432314,125.25,125.2,7.9872]
[1743375498059,0.14216157,125.29,125.2,27.9552]
[1743375498259,7.94,125.28,125.2,27.9552]
[1743375498659,19.21829514,125.27,125.2,7.9872]
[1743375498859,28.79194438,125.27,125.2,7.9872]
[1743375499379,0.28432314,125.25,125.19,9.6147]
[1743375499768,0.28432314,125.25,125.19,1.6271]
[1743375500168,0.28432314,125.25,125.19,9.6148]
[1743375500577,0.28432314,125.25,125.19,1.6271]
[1743375500882,0.28432314,125.23,125.18,8.051]
[1743375501075,8.22432314,125.23,125.18,8.051]
[1743375501889,8.22432314,125.23,125.2,0.063]
[1743375504087,0.28432314,125.23,125.2,0.063]
[1743375505476,8.22432314,125.24,125.2,0.063]
[1743375505477,7.94,125.24,125.2,0.063]
[1743375505784,0.03,125.25,125.2,0.063]
[1743375506582,0.03,125.25,125.22,7.9859]
[1743375508189,0.03,125.25,125.21,7.9865]
[1743375511202,0.31432314,125.25,125.2,0.063]
[1743375511886,0.31432314,125.25,125.2,8.0502]
[1743375512579,0.03,125.25,125.2,0.063]
[1743375515292,0.59864628,125.25,125.2,0.063]
[1743375517495,18.64964886,125.24,125.2,0.063]
[1743375517677,0.28432314,125.23,125.2,0.063]
[1743375519080,0.28432314,125.24,125.2,0.063]
[1743375519285,81.13,125.25,125.2,0.063]
[1743375519488,89.07,125.25,125.2,0.063]
[1743375519795,7.97,125.25,125.2,0.063]
[1743375519997,0.03,125.25,125.2,0.063]
[1743375520594,0.31432314,125.25,125.2,0.063]
[1743375524503,10.17229552,125.25,125.2,0.063]
[1743375524793,0.59864628,125.25,125.2,0.063]
[1743375525595,10.17229552,125.25,125.2,0.063]
[1743375525904,0.59864628,125.25,125.2,0.063]
[1743375532515,10.17229552,125.25,125.2,0.063]
[1743375532701,0.59864628,125.25,125.2,0.063]
[1743375542330,0.31432314,125.25,125.2,0.063]
[1743375545433,0.03,125.25,125.2,0.063]
[1743375548022,0.03,125.25,125.2,28.0182]
[1743375550404,0.03,125.25,125.2,8.0502]
[1743375552025,0.03,125.25,125.2,0.063]
[1743375567037,0.03,125.25,125.21,20.0]
[1743375567350,60.52215469,125.3,125.23,18.79181043]
[1743375567351,12.44215469,125.3,125.23,18.79181043]
[1743375567644,12.44215469,125.3,125.23,26.33006699]
[1743375568446,12.44215469,125.3,125.23,7.53825656]
[1743375568752,12.44215469,125.3,125.24,7.9846]
[1743375568942,0.28432314,125.29,125.24,7.9846]
[1743375570936,0.56864628,125.29,125.23,7.9853]
[1743375573434,0.59864628,125.29,125.23,7.9853]
[1743375584654,0.59864628,125.29,125.23,27.9485]
[1743375584837,0.59864628,125.29,125.23,28.0115]